fUST/lending_fUST_20251010
["ID","MTS","AMOUNT","RATE_DAILY","PERIOD"]
[390354718,1760029835668,-531.77,0.00016712,2]
[390354720,1760029835678,-669.82,0.00016712,2]
[390354722,1760029835688,-177.32,0.00016712,2]
[390354724,1760029835698,-500.0,0.00016712,2]
[390354726,1760029835709,-500.0,0.00016712,2]
[390354728,1760029835719,-500.0,0.00016712,2]
[390354730,1760029835729,-500.0,0.00016712,2]
[390354732,1760029835737,-500.0,0.00016712,2]
[390354734,1760029835747,-500.0,0.00016712,2]
[390354736,1760029835758,-500.0,0.00016712,2]
[390354738,1760029835768,-1544.96,0.00016712,2]
[390354740,1760029835778,-500.0,0.00016712,2]
[390354742,1760029835788,-500.0,0.00016712,2]
[390354744,1760029835798,-500.0,0.00016712,2]
[390354746,1760029835808,-501.32,0.00016712,2]
[390354748,1760029835817,-500.0,0.00016712,2]
[390354750,1760029835827,-537.98,0.00016712,2]
[390354752,1760029835836,-500.0,0.00016712,2]
[390354754,1760029835847,-500.0,0.00016712,2]
[390354757,1760029835857,-500.0,0.00016712,2]
[390354759,1760029835867,-500.0,0.00016712,2]
[390354761,1760029835876,-500.0,0.00016712,2]
[390354763,1760029835886,-500.0,0.00016712,2]
[390354765,1760029835897,-500.0,0.00016712,2]
[390354767,1760029835906,-500.0,0.00016712,2]
[390354769,1760029835916,-500.0,0.00016712,2]
[390354771,1760029835929,-514.9963839,0.00016712,2]
[390354773,1760029835939,-1184.79,0.00016712,2]
[390354775,1760029835948,-500.0,0.00016712,2]
[390354777,1760029835958,-500.0,0.00016712,2]
[390354779,1760029835968,-588.92,0.00016712,2]
[390354781,1760029835979,-500.0,0.00016712,2]
[390354783,1760029835988,-500.0,0.00016712,2]
[390354786,1760029835998,-500.0,0.00016712,2]
[390354788,1760029836007,-500.0,0.00016712,2]
[390354790,1760029836017,-500.0,0.00016712,2]
[390354792,1760029836027,-500.0,0.00016712,2]
[390354794,1760029836036,-528.89,0.00016712,2]
[390354796,1760029836048,-2074.5,0.00016712,2]
[390354798,1760029836057,-500.0,0.00016712,2]
[390354800,1760029836067,-342.3,0.00016712,2]
[390354802,1760029836076,-500.0,0.00016712,2]
[390354804,1760029836086,-367.48,0.00016712,2]
[390354806,1760029836096,-776.93,0.00016712,2]
[390354808,1760029836106,-657.76,0.00016712,2]
[390354810,1760029836115,-500.0,0.00016712,2]
[390354812,1760029836125,-767.91,0.00016712,2]
[390354814,1760029836135,-500.0,0.00016712,2]
[390354816,1760029836144,-172.98,0.00016712,2]
[390354818,1760029836155,-500.0,0.00016712,2]
[390354820,1760029836165,-585.87903379,0.00016712,2]
[390354823,1760029836174,-500.0,0.00016712,2]
[390354825,1760029836188,-500.0,0.00016712,2]
[390354827,1760029836198,-1126.62,0.00016712,2]
[390354828,1760029836207,-500.0,0.00016712,2]
[390354830,1760029836217,-235.01,0.00016712,2]
[390354832,1760029836226,-267.94,0.00016712,2]
[390354834,1760029836241,-669.66,0.00016712,2]
[390354836,1760029836254,-500.0,0.00016712,2]
[390354838,1760029836268,-4492.61,0.00016712,2]
[390354840,1760029836279,-862.14,0.00016712,2]
[390354842,1760029836288,-500.0,0.00016712,2]
[390354844,1760029836298,-500.0,0.00016712,2]
[390354846,1760029836309,-1200.87,0.00016712,2]
[390354848,1760029836319,-932.64,0.00016712,2]
[390354850,1760029836329,-500.0,0.00016712,2]
[390354852,1760029836338,-817.4,0.00016712,2]
[390354854,1760029836348,-519.99,0.00016712,2]
[390354856,1760029836358,-500.0,0.00016712,2]
[390354858,1760029836368,-943.9,0.00016712,2]
[390354860,1760029836377,-500.0,0.00016712,2]
[390354862,1760029836387,-500.0,0.00016712,2]
[390354864,1760029836397,-500.0,0.00016712,2]
[390354866,1760029836407,-500.0,0.00016712,2]
[390354868,1760029836419,-500.0,0.00016712,2]
[390354870,1760029836429,-500.0,0.00016712,2]
[390354872,1760029836438,-500.0,0.00016712,2]
[390354874,1760029836448,-947.93,0.00016712,2]
[390354876,1760029836458,-159.12005726,0.00016712,2]
[390354877,1760029836467,-500.0,0.00016712,2]
[390354880,1760029836477,-2224.87,0.00016712,2]
[390354881,1760029836487,-207.54101359,0.00016712,2]
[390354883,1760029836497,-627.78,0.00016712,2]
[390354885,1760029836507,-500.0,0.00016712,2]
[390354887,1760029836517,-500.0,0.00016712,2]
[390354889,1760029836527,-1255.81,0.00016712,2]
[390354891,1760029836537,-500.0,0.00016712,2]
[390354893,1760029836547,-500.0,0.00016712,2]
[390354894,1760029836557,-500.0,0.00016712,2]
[390354895,1760029836567,-500.0,0.00016712,2]
[390354896,1760029836577,-895.411096,0.00016712,2]
[390354897,1760029836586,-500.0,0.00016712,2]
[390354898,1760029836596,-500.0,0.00016712,2]
[390354899,1760029836605,-500.0,0.00016712,2]
[390354900,1760029836615,-1961.54,0.00016712,2]
[390354901,1760029836625,-500.0,0.00016712,2]
[390354902,1760029836634,-500.0,0.00016712,2]
[390354903,1760029836643,-500.0,0.00016712,2]
[390354904,1760029836653,-510.37,0.00016712,2]
[390354905,1760029836663,-500.0,0.00016712,2]
[390354906,1760029836673,-500.0,0.00016712,2]
[390354907,1760029836682,-500.0,0.00016712,2]
[390354908,1760029836691,-589.0,0.00016712,2]
[390354909,1760029836701,-922.2,0.00016712,2]
[390354910,1760029836711,-500.0,0.00016712,2]
[390354911,1760029836721,-1094.23,0.00016712,2]
[390354912,1760029836731,-500.0,0.00016712,2]
[390354913,1760029836741,-500.0,0.00016712,2]
[390354914,1760029836751,-1080.53,0.00016712,2]
[390354915,1760029836760,-500.0,0.00016712,2]
[390354916,1760029836770,-500.0,0.00016712,2]
[390354917,1760029836779,-533.32,0.00016712,2]
[390354918,1760029836788,-3901.56,0.00016712,2]
[390354919,1760029836798,-500.0,0.00016712,2]
[390354920,1760029836808,-500.0,0.00016712,2]
[390354921,1760029836817,-394.37,0.00016712,2]
[390354922,1760029836827,-819.38,0.00016712,2]
[390354923,1760029836837,-706.6,0.00016712,2]
[390354924,1760029836846,-500.0,0.00016712,2]
[390354925,1760029836855,-796.33,0.00016712,2]
[390354926,1760029836865,-500.0,0.00016712,2]
[390354927,1760029836875,-894.65,0.00016712,2]
[390354928,1760029836884,-1362.12,0.00016712,2]
[390354929,1760029836894,-2326.23,0.00016712,2]
[390354930,1760029836903,-463.99956704,0.00016712,2]
[390354931,1760029837124,-502.89043296,0.00016712,2]
[390354932,1760029837134,-500.0,0.00016712,2]
[390354933,1760029837144,-500.0,0.00016712,2]
[390354934,1760029837153,-592.34432324,0.00016712,2]
[390354935,1760029837166,-156.31567676,0.00016712,2]
[390354936,1760029837176,-375.23640248,0.00016712,2]
[390354937,1760029837185,-500.0,0.00016712,2]
[390354938,1760029837194,-199.341321,0.00016712,2]
[390354939,1760029837203,-373.48989755,0.00016712,2]
[390354940,1760029837213,-500.0,0.00016712,2]
[390354941,1760029837223,-500.0,0.00016712,2]
[390354942,1760029837236,-396.73947793,0.00016712,2]
[390354943,1760029837247,-464.70052207,0.00016712,2]
[390354944,1760029837257,-500.0,0.00016712,2]
[390354945,1760029837267,-500.0,0.00016712,2]
[390354946,1760029837280,-1703.0,0.00016712,2]
[390354947,1760029837289,-500.0,0.00016712,2]
[390354948,1760029837299,-500.0,0.00016712,2]
[390354949,1760029837309,-646.16,0.00016712,2]
[390354950,1760029837318,-810.31,0.00016712,2]
[390354951,1760029837327,-500.0,0.00016712,2]
[390354952,1760029837337,-500.0,0.00016712,2]
[390354953,1760029837346,-500.0,0.00016712,2]
[390354954,1760029837355,-500.0,0.00016712,2]
[390354955,1760029837365,-500.0,0.00016712,2]
[390354956,1760029837374,-500.0,0.00016712,2]
[390354957,1760029837383,-726.29,0.00016712,2]
[390354958,1760029837392,-1185.98,0.00016712,2]
[390354959,1760029837402,-2346.65,0.00016712,2]
[390354960,1760029837410,-1009.79,0.00016712,2]
[390354961,1760029837422,-500.0,0.00016712,2]
[390354962,1760029837431,-500.0,0.00016712,2]
[390354963,1760029837485,-2765.79,0.00016712,2]
[390354964,1760029837494,-500.0,0.00016712,2]
[390354965,1760029837504,-500.0,0.00016712,2]
[390354966,1760029837513,-1042.8,0.00016712,2]
[390354967,1760029837527,-500.0,0.00016712,2]
[390354968,1760029837536,-965.68,0.00016712,2]
[390354969,1760029837545,-500.0,0.00016712,2]
[390354970,1760029837554,-785.74,0.00016712,2]
[390354971,1760029837563,-1119.27,0.00016712,2]
[390354972,1760029837572,-724.17,0.00016712,2]
[390354973,1760029837581,-500.0,0.00016712,2]
[390354974,1760029837591,-500.0,0.00016712,2]
[390354975,1760029837600,-506.89,0.00016712,2]
[390354976,1760029837609,-500.0,0.00016712,2]
[390354977,1760029837618,-500.0,0.00016712,2]
[390354978,1760029837627,-2007.7,0.00016712,2]
[390354979,1760029837637,-500.0,0.00016712,2]
[390354980,1760029837649,-500.0,0.00016712,2]
[390354981,1760029837659,-151.0,0.00016712,2]
[390354982,1760029837669,-500.0,0.00016712,2]
[390354983,1760029837679,-1157.15,0.00016712,2]
[390354984,1760029837688,-2603.5,0.00016712,2]
[390354985,1760029837698,-2327.19,0.00016712,2]
[390354986,1760029837707,-417.952,0.00016806,2]
[390354987,1760029837716,-403.16793818,0.00016886,2]
[390354988,1760029837725,-1047.517188,0.00016914,2]
[390354989,1760029837734,-3438.96,0.00016985,2]
[390354990,1760029837743,-330.68,0.00016985,2]
[390354991,1760029837752,-500.0,0.00016985,2]
[390354992,1760029837762,-1027.92,0.00016985,2]
[390354993,1760029837770,-5484.79,0.00016985,2]
[390354994,1760029837779,-6601.27,0.00016985,2]
[390354995,1760029837789,-1156.55,0.00016985,2]
[390354997,1760029837798,-2285.38,0.00016985,2]
[390354999,1760029837807,-2131.2,0.00016985,2]
[390355001,1760029837816,-500.0,0.00016985,2]
[390355002,1760029837825,-618.75,0.00016985,2]
[390355003,1760029837834,-500.0,0.00016986,2]
[390355004,1760029837843,-174.152089,0.00016986,2]
[390355005,1760029837853,-503.03,0.00016986,2]
[390355006,1760029837862,-500.0,0.00016986,2]
[390355007,1760029837871,-500.0,0.00016986,2]
[390355008,1760029837880,-500.0,0.00016986,2]
[390355009,1760029837889,-500.0,0.00016986,2]
[390355010,1760029837899,-500.0,0.00016986,2]
[390355011,1760029837908,-500.0,0.00016986,2]
[390355012,1760029837919,-500.0,0.00016986,2]
[390355013,1760029837928,-581.36,0.00016986,2]
[390355014,1760029837937,-500.0,0.00016986,2]
[390355015,1760029837947,-500.0,0.00016986,2]
[390355016,1760029837956,-500.0,0.00016986,2]
[390355017,1760029837966,-500.0,0.00016986,2]
[390355018,1760029837975,-500.0,0.00016986,2]
[390355019,1760029837985,-500.0,0.00016986,2]
[390355020,1760029837994,-531.77,0.00016986,2]
[390355021,1760029838003,-669.82,0.00016986,2]
[390355022,1760029838013,-500.0,0.00016986,2]
[390355023,1760029838021,-496.52890243,0.00016986,2]
[390355024,1760029838031,-500.0,0.00016986,2]
[390355025,1760029838041,-500.0,0.00016986,2]
[390355026,1760029838051,-500.0,0.00016986,2]
[390355027,1760029838060,-500.0,0.00016986,2]
[390355028,1760029838071,-500.0,0.00016986,2]
[390355029,1760029838081,-1544.96,0.00016986,2]
[390355030,1760029838091,-500.0,0.00016986,2]
[390355031,1760029838101,-500.0,0.00016986,2]
[390355032,1760029838111,-501.32,0.00016986,2]
[390355033,1760029838120,-500.0,0.00016986,2]
[390355035,1760029838130,-500.0,0.00016986,2]
[390355037,1760029838140,-500.0,0.00016986,2]
[390355039,1760029838150,-500.0,0.00016986,2]
[390355041,1760029838160,-500.0,0.00016986,2]
[390355043,1760029838172,-500.0,0.00016986,2]
[390355045,1760029838182,-500.0,0.00016986,2]
[390355047,1760029838192,-500.0,0.00016986,2]
[390355049,1760029838203,-500.0,0.00016986,2]
[390355051,1760029838212,-500.0,0.00016986,2]
[390355053,1760029838223,-1184.79,0.00016986,2]
[390355055,1760029838237,-500.0,0.00016986,2]
[390355057,1760029838248,-588.92,0.00016986,2]
[390355059,1760029838258,-500.0,0.00016986,2]
[390355061,1760029838267,-500.0,0.00016986,2]
[390355063,1760029838279,-409.83348137,0.00016986,2]
[390355065,1760029838289,-500.0,0.00016986,2]
[390355067,1760029838298,-500.0,0.00016986,2]
[390355069,1760029838311,-528.89,0.00016986,2]
[390355071,1760029838322,-2074.5,0.00016986,2]
[390355073,1760029838331,-520.12528871,0.00016986,2]
[390355075,1760029838341,-500.0,0.00016986,2]
[390355077,1760029838350,-776.93,0.00016986,2]
[390355079,1760029838360,-657.76,0.00016986,2]
[390355082,1760029838370,-500.0,0.00016986,2]
[390355084,1760029838380,-767.91,0.00016986,2]
[390355085,1760029838390,-500.0,0.00016986,2]
[390355087,1760029838399,-500.0,0.00016986,2]
[390355090,1760029838409,-500.0,0.00016986,2]
[390355092,1760029838419,-500.0,0.00016986,2]
[390355094,1760029838429,-1126.62,0.00016986,2]
[390355096,1760029838439,-500.0,0.00016986,2]
[390355098,1760029838449,-151.0,0.00016986,2]
[390355100,1760029838459,-669.66,0.00016986,2]
[390355102,1760029838468,-500.0,0.00016986,2]
[390355103,1760029838477,-862.14,0.00016986,2]
[390355105,1760029838487,-500.0,0.00016986,2]
[390355108,1760029838497,-151.0,0.00016986,2]
[390355109,1760029838507,-4492.61,0.00016986,2]
[390355111,1760029838516,-500.0,0.00016986,2]
[390355114,1760029838526,-1200.87,0.00016986,2]
[390355115,1760029838535,-932.64,0.00016986,2]
[390355117,1760029838545,-500.0,0.00016986,2]
[390355119,1760029838554,-817.4,0.00016986,2]
[390355122,1760029838564,-519.99,0.00016986,2]
[390355123,1760029838573,-500.0,0.00016986,2]
[390355125,1760029838583,-500.0,0.00016986,2]
[390355127,1760029838593,-943.9,0.00016986,2]
[390355129,1760029838602,-500.0,0.00016986,2]
[390355131,1760029838611,-500.0,0.00016986,2]
[390355133,1760029838620,-500.0,0.00016986,2]
[390355135,1760029838630,-500.0,0.00016986,2]
[390355138,1760029838640,-500.0,0.00016986,2]
[390355140,1760029838650,-500.0,0.00016986,2]
[390355142,1760029838659,-947.93,0.00016986,2]
[390355144,1760029838669,-500.0,0.00016986,2]
[390355146,1760029838679,-2224.87,0.00016986,2]
[390355148,1760029838689,-627.78,0.00016986,2]
[390355149,1760029838698,-373.97853366,0.00016986,2]
[390355150,1760029838708,-500.0,0.00016986,2]
[390355151,1760029838718,-1255.81,0.00016986,2]
[390355152,1760029838727,-500.0,0.00016986,2]
[390355153,1760029838737,-500.0,0.00016986,2]
[390355154,1760029838747,-500.0,0.00016986,2]
[390355155,1760029838756,-895.411096,0.00016986,2]
[390355156,1760029838766,-500.0,0.00016986,2]
[390355157,1760029838776,-500.0,0.00016986,2]
[390355158,1760029838786,-500.0,0.00016986,2]
[390355159,1760029838795,-1961.54,0.00016986,2]
[390355160,1760029838805,-500.0,0.00016986,2]
[390355161,1760029838815,-500.0,0.00016986,2]
[390355162,1760029838826,-500.0,0.00016986,2]
[390355163,1760029838835,-510.37,0.00016986,2]
[390355164,1760029838845,-500.0,0.00016986,2]
[390355165,1760029838854,-500.0,0.00016986,2]
[390355166,1760029838863,-500.0,0.00016986,2]
[390355167,1760029838873,-589.0,0.00016986,2]
[390355168,1760029838883,-922.2,0.00016986,2]
[390355169,1760029838894,-500.0,0.00016986,2]
[390355170,1760029838903,-1094.23,0.00016986,2]
[390355171,1760029838913,-500.0,0.00016986,2]
[390355173,1760029838922,-500.0,0.00016986,2]
[390355175,1760029838932,-1080.53,0.00016986,2]
[390355176,1760029838941,-500.0,0.00016986,2]
[390355178,1760029838951,-500.0,0.00016986,2]
[390355180,1760029838960,-533.32,0.00016986,2]
[390355182,1760029838969,-3901.56,0.00016986,2]
[390355184,1760029838979,-500.0,0.00016986,2]
[390355187,1760029838990,-500.0,0.00016986,2]
[390355188,1760029838999,-819.38,0.00016986,2]
[390355191,1760029839009,-706.6,0.00016986,2]
[390355193,1760029839020,-796.33,0.00016986,2]
[390355194,1760029839029,-500.0,0.00016986,2]
[390355196,1760029839039,-894.65,0.00016986,2]
[390355198,1760029839049,-1362.12,0.00016986,2]
[390355200,1760029839058,-2326.23,0.00016986,2]
[390355203,1760029839068,-966.89,0.00016986,2]
[390355205,1760029839078,-500.0,0.00016986,2]
[390355206,1760029839088,-500.0,0.00016986,2]
[390355208,1760029839098,-748.66,0.00016986,2]
[390355211,1760029839108,-500.0,0.00016986,2]
[390355213,1760029839118,-199.0,0.00016986,2]
[390355215,1760029839127,-500.0,0.00016986,2]
[390355217,1760029839137,-861.44,0.00016986,2]
[390355218,1760029839147,-500.0,0.00016986,2]
[390355220,1760029839157,-500.0,0.00016986,2]
[390355223,1760029839169,-1703.0,0.00016986,2]
[390355225,1760029839179,-194.67565904,0.00016986,2]
[390355227,1760029839189,-500.0,0.00016986,2]
[390355228,1760029839199,-646.16,0.00016986,2]
[390355231,1760029839209,-810.31,0.00016986,2]
[390355232,1760029839218,-500.0,0.00016986,2]
[390355234,1760029839229,-500.0,0.00016986,2]
[390355236,1760029839244,-500.0,0.00016986,2]
[390355238,1760029839253,-500.0,0.00016986,2]
[390355241,1760029839263,-500.0,0.00016986,2]
[390355242,1760029839273,-500.0,0.00016986,2]
[390355245,1760029839283,-726.29,0.00016986,2]
[390355246,1760029839293,-1185.98,0.00016986,2]
[390355249,1760029839303,-2346.65,0.00016986,2]
[390355250,1760029839313,-1009.79,0.00016986,2]
[390355252,1760029839323,-500.0,0.00016986,2]
[390355255,1760029839333,-2765.79,0.00016986,2]
[390355256,1760029839343,-500.0,0.00016986,2]
[390355259,1760029839353,-500.0,0.00016986,2]
[390355261,1760029839363,-1042.8,0.00016986,2]
[390355263,1760029839372,-500.0,0.00016986,2]
[390355264,1760029839382,-965.68,0.00016986,2]
[390355266,1760029839391,-500.0,0.00016986,2]
[390355268,1760029839400,-785.74,0.00016986,2]
[390355270,1760029839409,-1119.27,0.00016986,2]
[390355272,1760029839420,-724.17,0.00016986,2]
[390355274,1760029839430,-500.0,0.00016986,2]
[390355276,1760029839439,-500.0,0.00016986,2]
[390355278,1760029839449,-506.89,0.00016986,2]
[390355280,1760029839459,-500.0,0.00016986,2]
[390355282,1760029839469,-500.0,0.00016986,2]
[390355284,1760029839479,-2007.7,0.00016986,2]
[390355286,1760029839489,-500.0,0.00016986,2]
[390355288,1760029839505,-500.0,0.00016986,2]
[390355290,1760029839515,-500.0,0.00016986,2]
[390355292,1760029839524,-1157.15,0.00016986,2]
[390355294,1760029839535,-2603.5,0.00016986,2]
[390355296,1760029839545,-2327.19,0.00016986,2]
[390355298,1760029839554,-27897.10729504,0.0001699,2]
[390355713,1760029843628,-500.0,0.00016438,2]
[390355715,1760029843638,-102.5,0.00016438,2]
[390355717,1760029843649,-490.1385729,0.00016438,2]
[390355719,1760029843661,-236.8014271,0.00016438,2]
[390355721,1760029843673,-500.0,0.00016438,2]
[390355723,1760029843683,-500.0,0.00016712,2]
[390355725,1760029843692,-829.44,0.00016712,2]
[390355727,1760029843703,-671.558322,0.00016985,2]
[390355729,1760029843713,-435.09745015,0.00016985,2]
[390355731,1760029843724,-236.46087185,0.00016985,2]
[390355733,1760029843734,-671.558322,0.00016985,2]
[390355735,1760029843744,-671.558322,0.00016985,2]
[390355737,1760029843753,-500.0,0.00016986,2]
[390355739,1760029843763,-829.44,0.00016986,2]
[390355741,1760029843772,-8659.97655652,0.0001699,2]
[390355743,1760029843784,-4222.18551244,0.0001699,2]
[390355781,1760029844143,-500.0,0.00016438,2]
[390355783,1760029844154,-500.0,0.00016712,2]
[390355785,1760029844163,-194.26955647,0.00016712,2]
[390355787,1760029844175,-5.73044353,0.00016986,2]
[390355790,1760029844187,-494.26955647,0.00016986,2]
[390355792,1760029844197,-10305.51175156,0.0001699,2]
[390355793,1760029844207,-671.558322,0.0001699,2]
[390355796,1760029844217,-671.558322,0.0001699,2]
[390355797,1760029844228,-671.558322,0.0001699,2]
[390355799,1760029844240,-671.558322,0.0001699,2]
[390355801,1760029844250,-289.0,0.00017,2]
[390355803,1760029844260,-588.1827557,0.00017092,2]
[390355806,1760029844270,-468.0,0.00017149,2]
[390355808,1760029844280,-236.8,0.00017149,2]
[390355810,1760029844289,-236.8,0.00017149,2]
[390355812,1760029844299,-236.8,0.00017149,2]
[390355814,1760029844311,-236.8,0.00017149,2]
[390355816,1760029844321,-236.8,0.00017149,2]
[390355819,1760029844330,-236.8,0.00017149,2]
[390355820,1760029844340,-236.83,0.00017149,2]
[390355822,1760029844350,-359.0,0.0001715,2]
[390355825,1760029844360,-481.76812029,0.00017237,2]
[390355827,1760029844369,-2094.94653534,0.0001724,2]
[390355829,1760029844380,-1305.4095042,0.00017255,2]
[390355831,1760029844390,-290.73726827,0.00017259,2]
[390355833,1760029844401,-231.10523794,0.00017259,2]
[390355835,1760029844411,-500.0,0.00017259,2]
[390355837,1760029844421,-1027.92,0.00017259,2]
[390355839,1760029844432,-237.19805315,0.00017259,2]
[390355841,1760029844444,-2718.7001,0.00017259,2]
[390355902,1760029845023,-2528.89184685,0.00017259,2]
[390355904,1760029845033,-1942.87050132,0.00017259,2]
[390355907,1760029845045,-324.47256221,0.00017259,2]
[390355909,1760029845056,-594.225,0.00017259,2]
[390355911,1760029845069,-3739.70193647,0.00017259,2]
[390355913,1760029845078,-1156.55,0.00017259,2]
[390355915,1760029845087,-2285.38,0.00017259,2]
[390355917,1760029845097,-2131.2,0.00017259,2]
[390355919,1760029845106,-500.0,0.00017259,2]
[390355921,1760029845116,-618.75,0.00017259,2]
[390355923,1760029845125,-500.0,0.0001726,2]
[390355925,1760029845134,-503.03,0.0001726,2]
[390355927,1760029845143,-500.0,0.0001726,2]
[390355929,1760029845153,-500.0,0.0001726,2]
[390355931,1760029845163,-500.0,0.0001726,2]
[390355933,1760029845174,-500.0,0.0001726,2]
[390355935,1760029845183,-500.0,0.0001726,2]
[390355937,1760029845193,-500.0,0.0001726,2]
[390355939,1760029845203,-500.0,0.0001726,2]
[390355942,1760029845212,-581.36,0.0001726,2]
[390355944,1760029845223,-500.0,0.0001726,2]
[390355946,1760029845236,-500.0,0.0001726,2]
[390355948,1760029845246,-500.0,0.0001726,2]
[390355950,1760029845255,-500.0,0.0001726,2]
[390355952,1760029845265,-500.0,0.0001726,2]
[390355954,1760029845277,-531.77,0.0001726,2]
[390355956,1760029845287,-669.82,0.0001726,2]
[390355958,1760029845296,-500.0,0.0001726,2]
[390355960,1760029845305,-500.0,0.0001726,2]
[390355962,1760029845315,-500.0,0.0001726,2]
[390355964,1760029845325,-500.0,0.0001726,2]
[390355966,1760029845334,-500.0,0.0001726,2]
[390355968,1760029845343,-500.0,0.0001726,2]
[390355970,1760029845353,-1544.96,0.0001726,2]
[390355972,1760029845364,-500.0,0.0001726,2]
[390355974,1760029845373,-500.0,0.0001726,2]
[390355976,1760029845383,-501.32,0.0001726,2]
[390355978,1760029845393,-500.0,0.0001726,2]
[390355980,1760029845402,-500.0,0.0001726,2]
[390355982,1760029845412,-500.0,0.0001726,2]
[390355984,1760029845422,-500.0,0.0001726,2]
[390355986,1760029845431,-500.0,0.0001726,2]
[390355988,1760029845441,-500.0,0.0001726,2]
[390355990,1760029845451,-500.0,0.0001726,2]
[390355992,1760029845461,-500.0,0.0001726,2]
[390355995,1760029845470,-500.0,0.0001726,2]
[390355996,1760029845479,-500.0,0.0001726,2]
[390355998,1760029845489,-500.0,0.0001726,2]
[390355999,1760029845498,-500.0,0.0001726,2]
[390356001,1760029845508,-500.0,0.0001726,2]
[390356003,1760029845517,-500.0,0.0001726,2]
[390356005,1760029845527,-500.0,0.0001726,2]
[390356007,1760029845536,-528.89,0.0001726,2]
[390356008,1760029845546,-2074.5,0.0001726,2]
[390356010,1760029845556,-500.0,0.0001726,2]
[390356012,1760029845566,-776.93,0.0001726,2]
[390356014,1760029845576,-657.76,0.0001726,2]
[390356015,1760029845586,-282.4332658,0.0001726,2]
[390356017,1760029845596,-767.91,0.0001726,2]
[390356019,1760029845606,-500.0,0.0001726,2]
[390356022,1760029845615,-500.0,0.0001726,2]
[390356024,1760029845625,-500.0,0.0001726,2]
[390356025,1760029845634,-500.0,0.0001726,2]
[390356027,1760029845643,-1126.62,0.0001726,2]
[390356029,1760029845653,-500.0,0.0001726,2]
[390356031,1760029845663,-669.66,0.0001726,2]
[390356032,1760029845673,-862.14,0.0001726,2]
[390356052,1760029845903,-500.0,0.0001726,2]
[390356054,1760029845917,-4492.61,0.0001726,2]
[390356056,1760029845927,-500.0,0.0001726,2]
[390356058,1760029845937,-1200.87,0.0001726,2]
[390356060,1760029845946,-500.0,0.0001726,2]
[390356062,1760029845956,-817.4,0.0001726,2]
[390356063,1760029845966,-519.99,0.0001726,2]
[390356065,1760029845975,-500.0,0.0001726,2]
[390356067,1760029845985,-400.28239685,0.0001726,2]
[390356069,1760029845996,-943.9,0.0001726,2]
[390356071,1760029846006,-500.0,0.0001726,2]
[390356072,1760029846015,-500.0,0.0001726,2]
[390356074,1760029846024,-500.0,0.0001726,2]
[390356076,1760029846034,-500.0,0.0001726,2]
[390356078,1760029846043,-500.0,0.0001726,2]
[390356080,1760029846053,-500.0,0.0001726,2]
[390356081,1760029846062,-500.0,0.0001726,2]
[390356083,1760029846071,-2224.87,0.0001726,2]